fUSD/lending_fUSD_20240503
["ID","MTS","AMOUNT","RATE_DAILY","PERIOD"]
[325324927,1714726237823,-178.00701156,0.00024858,2]
[325324929,1714726237834,-573.54526418,0.00024858,2]
[325324932,1714726237847,-468.25265996,0.00024858,2]
[325324935,1714726237866,-419.9228602,0.00024858,2]
[325324937,1714726237876,-40.80265033,0.00024974,2]
[325324943,1714726237926,-118.51734967,0.00024974,2]
[325324945,1714726237936,-5000.0,0.00025,2]
[325324947,1714726237945,-180.17220405,0.00025108,2]
[325324949,1714726237960,-600.0,0.00025122,2]
[325324951,1714726237970,-599.46,0.00025147,2]
[325324953,1714726237979,-599.46,0.00025154,2]
[325324955,1714726237988,-599.46,0.00025161,2]
[325324956,1714726237998,-599.46,0.00025167,2]
[325324958,1714726238007,-599.46,0.00025174,2]
[325324960,1714726238017,-268.46782575,0.00025178,2]
[325324962,1714726238026,-599.46,0.00025181,2]
[325324964,1714726238035,-599.46,0.00025187,2]
[325324965,1714726238045,-599.46,0.00025194,2]
[325324966,1714726238054,-599.46,0.000252,2]
[325324967,1714726238064,-1000.0,0.00025205,3]
[325324968,1714726238073,-599.46,0.00025207,2]
[325324970,1714726238082,-599.46,0.00025214,2]
[325324972,1714726238092,-1465.10390552,0.00025217,2]
[325324974,1714726238101,-599.46,0.0002522,2]
[325324976,1714726238110,-599.46,0.00025227,2]
[325324978,1714726238119,-599.46,0.00025234,2]
[325324980,1714726238129,-599.46,0.0002524,2]
[325324982,1714726238138,-599.46,0.00025247,2]
[325324984,1714726238147,-599.46,0.00025254,2]
[325324985,1714726238156,-599.46,0.0002526,2]
[325324987,1714726238165,-153.99752433,0.00025265,2]
[325324989,1714726238174,-599.46,0.00025267,2]
[325324991,1714726238183,-599.46,0.00025273,2]
[325324993,1714726238192,-159.32,0.00025299,2]
[325324995,1714726238206,-1603.33188358,0.00025517,2]
[325324997,1714726238215,-159.32,0.00025625,2]
[325324999,1714726238224,-1000.0,0.00025753,4]
[325325001,1714726238233,-151.3283517,0.00025782,2]
[325325003,1714726238243,-159.32,0.0002595,2]
[325325005,1714726238252,-5895.0,0.0002601,2]
[325325007,1714726238261,-1177.0,0.0002601,2]
[325325009,1714726238271,-288.0,0.0002601,2]
[325325011,1714726238281,-4595.198,0.0002601,2]
[325325013,1714726238291,-200.0,0.00026207,2]
[325325014,1714726238300,-159.32,0.00026276,2]
[325325015,1714726238310,-1000.0,0.00026301,5]
[325325016,1714726238320,-2011.00618802,0.00026577,2]
[325325017,1714726238336,-183.14401397,0.00026577,7]
[325325018,1714726238346,-1000.0,0.00026849,6]
[325325019,1714726238356,-158.13951395,0.00027224,3]
[325325020,1714726238366,-170.94,0.0002736,2]
[325325021,1714726238376,-1000.0,0.00027397,7]
[325325022,1714726238386,-151.25,0.00027397,2]
[325325023,1714726238397,-157.8360559,0.00027587,2]
[325325024,1714726238407,-347.34,0.00027641,120]
[325325025,1714726238416,-3217.72069957,0.00027696,2]
[325325026,1714726238426,-210.28,0.00027714,2]
[325325027,1714726238435,-160.48296032,0.00027749,2]
[325325028,1714726238444,-210.1831,0.00027777,2]
[325325029,1714726238456,-864.2352,0.00027777,2]
[325325030,1714726238464,-1000.0,0.00027777,2]
[325325031,1714726238473,-2500.0,0.00027777,2]
[325325032,1714726238482,-2832.5922,0.00027777,2]
[325325033,1714726238490,-312.09761544,0.00027777,2]
[325325034,1714726238500,-255.5,0.00027796,120]
[325325035,1714726238509,-40072.4676,0.00027877,2]
[325325036,1714726238518,-500.0,0.00027877,2]
[325325037,1714726238528,-100000.0,0.00027877,2]
[325325038,1714726238537,-1000.0,0.00027877,2]
[325325039,1714726238547,-400.0,0.00027918,2]
[325325040,1714726238556,-1000.0,0.00027945,8]
[325325041,1714726238566,-409.3828276,0.00027976,2]
[325325042,1714726238575,-155.0,0.00027976,2]
[325325043,1714726238585,-710.33944675,0.00027976,2]
[325325044,1714726238594,-538.41443529,0.00027976,2]
[325325045,1714726238603,-1000.0,0.00027976,2]
[325325046,1714726238612,-371.69231441,0.00027976,2]
[325325047,1714726238621,-973.46705358,0.00027976,2]
[325325048,1714726238630,-276.4404,0.00027976,2]
[325325049,1714726238640,-155.23961995,0.00027976,2]
[325325050,1714726238649,-2266.21413518,0.00027976,2]
[325325051,1714726238658,-327.24491788,0.00027976,2]
[325325052,1714726238667,-155.14765968,0.00027976,2]
[325325053,1714726238675,-238.23985667,0.00027976,2]
[325325054,1714726238685,-206.37205636,0.00027976,2]
[325325055,1714726238694,-190.20563737,0.00027976,2]
[325325056,1714726238704,-317.01746459,0.00027976,2]
[325325057,1714726238713,-317.43976768,0.00027976,2]
[325325058,1714726238722,-1559.39465,0.00027976,2]
[325325059,1714726238733,-252.49467778,0.00027976,2]
[325325060,1714726238742,-317.77309168,0.00027976,2]
[325325061,1714726238752,-168.1135179,0.00027976,2]
[325325062,1714726238761,-216.22293644,0.00027976,2]
[325325063,1714726238771,-256.838455,0.00027977,2]
[325325064,1714726238781,-2341.91451243,0.00027977,2]
[325325065,1714726238791,-3040.85221247,0.00027977,2]
[325325066,1714726238801,-9920.33690431,0.00027977,2]
[325325067,1714726238811,-3002.52973088,0.00027977,2]
[325325068,1714726238820,-2531.91912464,0.00027977,2]
[325325069,1714726238831,-600.0,0.00028262,2]
[325325070,1714726238840,-1000.0,0.00028493,9]
[325325071,1714726238850,-155.2105048,0.00028814,2]
[325325072,1714726238859,-150.0,0.00028892,2]
[325325073,1714726238869,-685.0,0.00028892,30]
[325325074,1714726238878,-150.62044566,0.00028892,2]
[325325075,1714726238887,-150.62044566,0.00028892,2]
[325325076,1714726238896,-150.62044566,0.00028892,2]
[325325077,1714726238905,-150.62044566,0.00028892,2]
[325325078,1714726238914,-150.62044566,0.00028892,2]
[325325079,1714726238923,-1000.0,0.00028892,120]
[325325080,1714726238932,-8170.0,0.00028892,2]
[325325081,1714726238942,-288.0,0.0002901,2]
[325325082,1714726238953,-1000.0,0.00029041,10]
[325325083,1714726238963,-163.74,0.00029164,2]
[325325084,1714726238972,-1000.0,0.00029589,11]
[325325085,1714726238981,-500.0,0.00029589,2]
[325325086,1714726238991,-160.48296032,0.00029612,2]
[325325087,1714726239000,-200.0,0.00029883,7]
[325325088,1714726239009,-229.09485254,0.0003,4]
[325325089,1714726239019,-1000.0,0.00030136,12]
[325325090,1714726239029,-180.0,0.00030258,2]
[325325091,1714726239038,-1000.0,0.00030684,13]
[325325092,1714726239048,-150.0,0.00030703,2]
[325325093,1714726239057,-347.34,0.00030713,120]
[325325094,1714726239066,-1000.0,0.00030751,10]
[325325095,1714726239076,-500.0,0.00030751,2]
[325325096,1714726239085,-200.0,0.00030751,2]
[325325097,1714726239094,-3496.71037598,0.00030834,2]
[325325098,1714726239103,-255.5,0.00030884,120]
[325325099,1714726239112,-12136.14829712,0.000309,2]
[325325100,1714726239126,-286.10621199,0.000309,2]
[325325101,1714726239137,-3206.09199089,0.000309,2]
[325325102,1714726239147,-173.48131212,0.000309,2]
[325325103,1714726239155,-157.8360559,0.000309,2]
[325325104,1714726239165,-185.18507971,0.000309,2]
[325325105,1714726239174,-152.10763623,0.000309,2]
[325325106,1714726239184,-1092.95847552,0.000309,2]
[325325107,1714726239193,-817.80997292,0.000309,2]
[325325108,1714726239207,-1036.24451051,0.000309,2]
[325325109,1714726239223,-334.13536002,0.000309,2]
[325325110,1714726239242,-2433.93165,0.000309,2]
[325325111,1714726239253,-2877.87850655,0.000309,2]
[325325112,1714726239262,-150.0,0.000309,10]
[325325113,1714726239271,-262.537724,0.000309,10]
[325325114,1714726239280,-364.04025324,0.000309,2]
[325325115,1714726239290,-216.12482262,0.000309,2]
[325325116,1714726239300,-151.87422436,0.000309,2]
[325325117,1714726239309,-18360.0661452,0.00030994,2]
[325325118,1714726239319,-664.0930319,0.00030994,2]
[325325119,1714726239329,-150.01,0.00030998,2]
[325325120,1714726239339,-5852.08008115,0.00030998,2]
[325325121,1714726239350,-166.66666,0.00030998,2]
[325325122,1714726239360,-1101.14767471,0.00030999,2]
[325325123,1714726239371,-19259.18755817,0.00030999,2]
[325325124,1714726239392,-3504.36369245,0.00030999,2]
[325325127,1714726240054,-569.44888,0.00030999,2]
[325325128,1714726240066,-1589.5,0.00030999,2]
[325325129,1714726240078,-17100.0,0.00030999,2]
[325325130,1714726240089,-41373.70831545,0.00030999,2]
[325325131,1714726240100,-1117.78369112,0.00030999,2]
[325325132,1714726240110,-734.0,0.00031,5]
[325325133,1714726240119,-2138.70280889,0.00031,5]
[325325134,1714726240130,-1255.26481722,0.00031,5]
[325325135,1714726240142,-747.1658018,0.00031,5]
[325325136,1714726240154,-768.68518293,0.00031,5]
[325325137,1714726240207,-289.57737891,0.00031,5]
[325325140,1714726240247,-251.11854974,0.00031,5]
[325325141,1714726240259,-600.10449998,0.00031,5]
[325325142,1714726240271,-28766.50000002,0.00031,5]
[325325143,1714726240396,-848.46,0.00031,5]
[325325144,1714726240407,-1129.10829927,0.00031,5]
[325325145,1714726240689,-1745.70402309,0.00031,5]
[325325146,1714726240711,-463.93419016,0.00031,5]
[325325202,1714726243035,-312.09761536,0.00029346,2]
[325325203,1714726243044,-832.39313199,0.00031,5]
[325325204,1714726243254,-2850.0,0.00031,5]
[325325205,1714726243266,-4433.464,0.00031,5]
[325325206,1714726243278,-88932.0716633,0.00031,5]
[325325207,1714726243289,-177809.89862025,0.00031,5]
[325325208,1714726243309,-7062.5,0.00031,5]
[325325210,1714726243362,-1138.82,0.00031,5]
[325325213,1714726243384,-1246.83334283,0.00031,5]
[325325217,1714726243398,-329.40235786,0.00031,5]
[325325248,1714726245756,-547.84176427,0.00024488,2]
[325325254,1714726245785,-594.06555435,0.00024488,2]
[325325260,1714726245830,-1719.783198,0.00024488,2]
[325325262,1714726245842,-7138.30948338,0.00024488,2]
[325325264,1714726245851,-333.33333,0.00030999,2]
[325325266,1714726245862,-40866.50697139,0.00031,5]
[325325268,1714726245873,-572.484124,0.00031,5]
[325325271,1714726245887,-729.84447546,0.00031,5]
[325325273,1714726245899,-365.9968,0.00031,5]
[325325274,1714726245909,-36198.28657142,0.00031,5]
[325325275,1714726245921,-57090.56814183,0.00031,5]
[325325276,1714726245932,-828.46681849,0.00031,5]
[325325277,1714726245952,-3150.39333094,0.00031,5]
[325325278,1714726245965,-344.20315202,0.00031,5]
[325325279,1714726245976,-566.66,0.00031,5]
[325325280,1714726245996,-480.16982061,0.00031,5]
[325325281,1714726246011,-862.575,0.00031,5]
[325325282,1714726246107,-6573.59869803,0.00031,5]
[325325283,1714726246119,-624.56983749,0.00031,5]
[325325284,1714726246130,-5714.7,0.00031,5]
[325325285,1714726246141,-28495.800534,0.00031,5]
[325325286,1714726246153,-115000.0,0.00031,5]
[325325288,1714726321687,-412.30301199,0.00010798,2]
[325325289,1714726321714,-23.47062593,0.00010798,2]
[325325291,1714726405731,-150.0,0.000101,2]
[325325302,1714726984719,-333.06889411,0.000101,2]
[325325303,1714726987294,-155.44721549,0.000101,2]
[325325304,1714726993842,150.0,9.999e-05,2]
[325325305,1714726993867,8.84299067,9.999e-05,2]
[325325309,1714727175584,150.0,9.999e-05,2]
[325325310,1714727175615,150.0,9.999e-05,2]
[325325311,1714727175654,150.0,9.999e-05,2]
[325325312,1714727175675,150.0,9.999e-05,2]
[325325313,1714727175696,150.0,9.999e-05,2]
[325325314,1714727175717,232.53670798,9.999e-05,2]
[325325315,1714727175740,29.64818686,9.999e-05,2]
[325325317,1714727195640,150.0,0.0001,2]
[325325318,1714727195663,150.0,0.0001,2]
[325325319,1714727195685,108.72404742,0.0001,2]
[325325320,1714727373185,-166.21191824,0.00010698,2]
[325325322,1714727403364,150.0,0.0001,2]
[325325323,1714727403431,150.0,0.0001,2]
[325325324,1714727403490,150.0,0.0001,2]
[325325325,1714727403683,150.0,0.0001,2]
[325325326,1714727403997,150.0,0.0001,2]
[325325327,1714727404177,150.0,0.0001,2]
[325325328,1714727404392,150.0,0.0001,2]
[325325329,1714727404567,150.0,0.0001,2]
[325325330,1714727404739,150.0,0.0001,2]
[325325331,1714727405110,150.0,0.0001,2]
[325325332,1714727405134,150.0,0.0001,2]
[325325337,1714727432203,-156.32405081,0.00010798,2]
[325325338,1714727432213,-177.54622384,0.00010798,2]
[325325339,1714727432222,-536.49041607,0.00010798,2]
[325325340,1714727432232,-576.793777,0.00010798,2]
[325325341,1714727432242,-763.02990467,0.0001099,2]
[325325342,1714727432251,-1691.98824979,0.00011,2]
[325325343,1714727432264,-54042.39548055,0.00011,2]
[325325344,1714727432273,-687.02413836,0.00011,2]
[325325345,1714727432283,-4555.58038108,0.000118,2]
[325325346,1714727432294,-380.04295626,0.000118,2]
[325325347,1714727432346,-5361.4371745,0.000118,2]
[325325348,1714727432372,-3046.32626526,0.000118,2]
[325325417,1714727438117,-5846.29780363,0.000118,2]
[325325418,1714727438126,-35848.99217938,0.000128,2]
[325325420,1714727438135,-424.81616905,0.000129,2]
[325325422,1714727438144,-161.429294,0.000129,2]
[325325424,1714727438154,-800.0,0.000129,4]
[325325426,1714727438163,-1123.98068457,0.000129,2]
[325325428,1714727438172,-155.39633959,0.0001299,2]
[325325430,1714727438181,-12800.08752978,0.00013,2]
[325325439,1714727438371,-11281.41034226,0.00013,2]
[325325440,1714727438387,-5140.3720589,0.00013,2]
[325325441,1714727438398,-5000.0,0.00013,2]
[325325442,1714727438410,-378574.70744993,0.00013,2]
[325325443,1714727438420,-330083.26675118,0.00013,2]
[325325444,1714727438430,-272.64053871,0.000139,2]
[325325445,1714727438439,-562.99,0.000139,2]
[325325446,1714727438449,-150.99,0.000139,2]
[325325447,1714727438459,-2016.25,0.000139,2]
[325325448,1714727438469,-150.99,0.000139,2]
[325325449,1714727438478,-21316.92,0.000139,2]
[325325450,1714727438488,-894.24,0.000139,2]
[325325451,1714727438497,-1036.73785114,0.00014,2]
[325325452,1714727438506,-1123.98068445,0.00014971,2]
[325325453,1714727438516,-1041.0025071,0.00015,2]
[325325454,1714727438525,-167.56442339,0.00015,2]
[325325455,1714727438535,-7485.0,0.00015304,2]
[325325456,1714727438544,-499.99,0.00015304,2]
[325325457,1714727438553,-177.77,0.0001598,2]
[325325458,1714727438563,-1226.01241379,0.00016897,2]
[325325459,1714727438573,-464.24,0.00016897,2]
[325325460,1714727438582,-684.85937217,0.00016997,2]
[325325461,1714727438591,-155.0,0.00016997,2]
[325325462,1714727438601,-236.77556872,0.00016997,2]
[325325463,1714727438611,-1211.81420206,0.00016997,2]
[325325464,1714727438620,-1123.98068445,0.00017043,2]
[325325465,1714727438630,-272.64053867,0.000174,2]
[325325466,1714727438639,-249.67809236,0.0001788,2]
[325325467,1714727438932,-249.67809228,0.0001788,2]
[325325468,1714727438942,-164.09578584,0.0001788,2]
[325325469,1714727438952,-450.0,0.00018,3]
[325325470,1714727438962,-500.0,0.000185,2]
[325325471,1714727438971,-249.67809228,0.00018767,2]
[325325472,1714727438980,-1123.98068445,0.00019114,2]
[325325473,1714727438989,-164.09578582,0.000195,2]
[325325474,1714727438999,-1226.01241372,0.0001954,2]
[325325475,1714727439008,-23900.0,0.00019654,2]
[325325476,1714727439018,-250.0,0.00019762,2]
[325325477,1714727439027,-492.27,0.00019786,2]
[325325478,1714727439036,-1726.41,0.00019903,2]
[325325479,1714727439046,-181.37,0.00019974,2]
[325325480,1714727439055,-293.29822192,0.0002,2]
[325325481,1714727439065,-443.481164,0.0002,2]
[325325482,1714727439074,-500.0,0.0002,3]
[325325483,1714727439083,-155.0,0.00020026,2]
[325325484,1714727439093,-150.0,0.00020108,2]
[325325485,1714727439102,-1240.18,0.00020249,2]
[325325486,1714727439112,-1280.12,0.00020461,2]
[325325487,1714727439122,-1000.0,0.00020574,2]
[325325488,1714727439131,-167.2,0.00020622,2]
[325325489,1714727439140,-154.45,0.00020653,2]
[325325490,1714727439150,-272.64053867,0.000209,2]
[325325491,1714727439159,-2212.20569301,0.00021,2]
[325325492,1714727439168,-158.86,0.00021101,2]
[325325493,1714727439178,-168.96,0.00021142,2]
[325325494,1714727439187,-273.04,0.00021644,2]
[325325495,1714727439196,-195.02,0.00021644,2]
[325325496,1714727439206,-249.67809228,0.000217,2]
[325325497,1714727439215,-154.45,0.00021729,2]
[325325498,1714727439225,-1000.0,0.000219,2]
[325325499,1714727439235,-250.0,0.00021918,2]
[325325500,1714727439244,-2140.57,0.00021918,2]
[325325501,1714727439253,-1820.11,0.00021918,3]
[325325502,1714727439263,-2000.0,0.00021918,2]
[325325503,1714727439273,-550.0,0.00022,3]
[325325504,1714727439282,-154.51082583,0.00022139,2]
[325325505,1714727439292,-1226.01241372,0.00022184,2]
[325325506,1714727439301,-2670.0,0.000222,3]
[325325507,1714727439311,-154.6633179,0.00022311,2]
[325325508,1714727439321,-155.15237881,0.00022381,2]
[325325509,1714727439330,-1000.0,0.00023145,2]
[325325510,1714727439340,-151.6412458,0.00023241,2]
[325325511,1714727439350,-158.86,0.00023738,2]
[325325512,1714727439359,-177.77,0.00023971,2]
[325325513,1714727439369,-163.69417388,0.00023974,2]
[325325514,1714727439378,-155.78417517,0.00024,2]
[325325515,1714727439388,-600.0,0.00024,3]
[325325516,1714727439397,-163.28,0.00024329,15]
[325325517,1714727439406,-272.64053867,0.000244,2]
[325325518,1714727439415,-2443.59246119,0.00024488,2]
[325325519,1714727439425,-5739.0,0.0002457,2]
[325325520,1714727439434,-2292.0,0.0002457,2]
[325325521,1714727439444,-288.0,0.0002457,2]
[325325522,1714727439455,-5901.0,0.0002457,2]
[325325523,1714727439464,-24602.527,0.0002457,2]
[325325524,1714727439474,-151.51506529,0.00024597,2]
[325325525,1714727439483,-173.55712466,0.00024626,2]
[325325526,1714727439493,-151.87422436,0.00024626,2]
[325325527,1714727439502,-172.4746835,0.00024626,2]
[325325528,1714727439512,-159.88046271,0.00024629,2]
[325325529,1714727439521,-249.67809228,0.00024633,2]
[325325530,1714727439531,-1015.74,0.00024657,2]
[325325531,1714727439540,-119620.95559726,0.0002467,2]
[325325532,1714727439550,-1000.0,0.000247,2]
[325325533,1714727439559,-182.66917425,0.00024727,2]
[325325534,1714727439568,-1226.01241372,0.00024827,2]
[325325535,1714727439578,-1600.0,0.000249,9]
[325325536,1714727439587,-5000.0,0.00025,2]
[325325537,1714727439597,-2000.0,0.00025,2]
[325325538,1714727439606,-209.07671972,0.00025,2]
[325325539,1714727439616,-2000.0,0.0002501,2]
[325325540,1714727439626,-2000.0,0.0002502,2]
[325325541,1714727439635,-2000.0,0.0002503,2]
[325325542,1714727439644,-2000.0,0.0002504,2]
[325325543,1714727439654,-2000.0,0.0002505,2]
[325325544,1714727439663,-2000.0,0.0002506,2]
[325325545,1714727439674,-3271.112798,0.0002507,2]
[325325546,1714727439688,-800.0,0.00025178,2]
[325325547,1714727439697,-718.38891041,0.00025178,2]
[325325548,1714727439707,-224.55259295,0.00025591,2]
[325325549,1714727439718,-1000.0,0.00025717,2]
[325325550,1714727439728,-151.87422436,0.00025931,2]
[325325551,1714727439738,-972.257,0.00026011,2]
[325325552,1714727439747,-463.573,0.00026011,2]
[325325553,1714727439759,-1397.818,0.00026011,2]
[325325554,1714727439769,-2302.491,0.00026011,2]
[325325555,1714727439778,-1260.514,0.00026011,2]
[325325556,1714727439788,-1227.0,0.00026011,2]
[325325557,1714727439797,-542.0,0.00026011,2]
[325325558,1714727439807,-309.033,0.00026011,2]
[325325559,1714727439816,-437.0,0.00026011,2]
[325325560,1714727439826,-1786.0,0.00026011,2]
[325325561,1714727439835,-808.0,0.00026011,2]
[325325562,1714727439846,-611.0,0.00026011,2]
[325325563,1714727439855,-421.012,0.00026011,2]
[325325564,1714727439865,-150.807,0.00026011,2]
[325325565,1714727439875,-151.013,0.00026011,2]
[325325566,1714727439885,-1482.097,0.00026011,2]
[325325567,1714727439893,-2455.57,0.00026011,2]
[325325568,1714727439902,-216.0,0.00026011,2]
[325325569,1714727439912,-1143.459,0.00026011,2]
[325325570,1714727439921,-444.287,0.00026011,2]
[325325571,1714727439931,-1647.783,0.00026011,2]
[325325572,1714727439940,-3142.267,0.00026011,2]
[325325573,1714727439950,-164.09578582,0.000261,2]
[325325574,1714727439959,-158.22233154,0.00026155,2]
[325325575,1714727439968,-153.72003342,0.00026316,2]
[325325577,1714727439977,-151.51506521,0.00026327,2]
[325325579,1714727439986,-158.86,0.00026376,120]
[325325581,1714727439996,-9189.71076016,0.00026577,7]
[325325583,1714727440005,-1999.82575251,0.00026577,2]
[325325584,1714727440014,-182.66917425,0.00026785,2]
[325325586,1714727440024,-2000.0,0.00027,2]
[325325588,1714727440033,-2000.0,0.0002701,2]
[325325590,1714727440042,-150.0,0.00027012,2]
[325325591,1714727440052,-2000.0,0.0002702,2]
[325325593,1714727440060,-2000.0,0.0002703,2]
[325325595,1714727440070,-2000.0,0.0002704,2]
[325325596,1714727440079,-3541.970031,0.0002705,2]
[325325597,1714727440089,-153.72003342,0.00027131,2]
[325325598,1714727440099,-151.87422436,0.00027237,2]
[325325599,1714727440108,-200.0,0.00027397,2]
[325325600,1714727440118,-2960.49,0.00027397,2]
[325325601,1714727440127,-150.0,0.00027397,2]
[325325602,1714727440137,-1000.0,0.000274,2]
[325325603,1714727440146,-253.78538962,0.00027416,2]
[325325604,1714727440156,-1226.01241372,0.0002747,2]
[325325605,1714727440165,-173.55712462,0.00027561,2]
[325325606,1714727440174,-249.67809228,0.00027567,2]
[325325607,1714727440184,-184.037,0.0002757,2]
[325325608,1714727440193,-288.0,0.0002757,2]
[325325609,1714727440203,-372.459,0.0002757,2]
[325325610,1714727440212,-150.0,0.00027575,2]
[325325611,1714727440222,-154.51082583,0.00027652,2]
[325325613,1714727440231,-1661.95649613,0.00027696,2]
[325325614,1714727440240,-2400.0,0.000277,10]
[325325615,1714727440250,-195.02,0.00027714,2]
[325325616,1714727440260,-667.0206,0.00027777,2]
[325325617,1714727440269,-24793.2367,0.00027777,2]
[325325618,1714727440279,-320.76,0.00027777,2]
[325325619,1714727440288,-3200.0,0.000278,10]
[325325620,1714727440298,-1000.0,0.0002788,2]
[325325621,1714727440308,-4000.0,0.000279,10]
[325325622,1714727440317,-272.64053867,0.000279,2]
[325325623,1714727440327,-287.91757552,0.000279,2]
[325325624,1714727440336,-288.32584948,0.000279,2]
[325325625,1714727440346,-11332.93637159,0.000279,2]
[325325626,1714727440355,-242.69350216,0.000279,2]
[325325627,1714727440365,-200.323743,0.00027915,2]
[325325628,1714727440374,-168.105275,0.00027915,2]
[325325629,1714727440384,-3275.788561,0.00027915,2]
[325325630,1714727440393,-160.092484,0.00027915,2]
[325325631,1714727440402,-217.409745,0.00027915,2]
[325325632,1714727440412,-2935.79232,0.00027915,2]
[325325633,1714727440421,-780.467948,0.00027915,2]
[325325634,1714727440431,-302.336372,0.00027915,2]
[325325635,1714727440440,-2222.389149,0.00027915,2]
[325325636,1714727440450,-527.56016,0.00027915,2]
[325325637,1714727440459,-2014.634421,0.00027915,2]
[325325638,1714727440468,-160.454045,0.00027915,2]
[325325639,1714727440477,-575.39585,0.00027915,2]
[325325640,1714727440487,-866.265519,0.00027915,2]
[325325641,1714727440497,-192.650542,0.00027915,2]
[325325642,1714727440506,-533.35658,0.00027915,2]
[325325643,1714727440516,-163.636893,0.00027915,2]
[325325644,1714727440525,-240.628896,0.00027915,2]
[325325645,1714727440534,-210.49567394,0.00027918,2]
[325325646,1714727440544,-4626.68696717,0.00027951,2]
[325325647,1714727440554,-181.72407984,0.00027962,2]
[325325648,1714727440563,-570.0,0.00027973,4]
[325325649,1714727440572,-155.0,0.00027976,2]
[325325650,1714727440581,-155.0,0.00027976,2]
[325325651,1714727440591,-155.18648239,0.00027976,2]
[325325652,1714727440600,-621.84015726,0.00027976,2]
[325325653,1714727440609,-155.58546375,0.00027976,2]
[325325654,1714727440619,-171.48085819,0.00027976,2]
[325325655,1714727440628,-156.02229976,0.00027976,2]
[325325656,1714727440641,-200.12377056,0.00027976,2]
[325325657,1714727440661,-1874.96200979,0.00027976,2]
[325325658,1714727440681,-155.73308792,0.00027976,2]
[325325659,1714727440697,-413.06779798,0.00027976,2]
[325325660,1714727440716,-1667.16113497,0.00027976,2]
[325325661,1714727440734,-1068.28892115,0.00027976,2]
[325325662,1714727440753,-156.18873898,0.00027976,2]
[325325663,1714727440769,-155.85257639,0.00027976,2]
[325325664,1714727440787,-264.71106287,0.00027976,2]
[325325665,1714727440801,-409.36988863,0.00027976,2]
[325325666,1714727440814,-214.0002672,0.00027976,2]
[325325667,1714727440830,-155.72839785,0.00027976,2]
[325325668,1714727440847,-247.82154532,0.00027976,2]
[325325669,1714727440865,-298.32588627,0.00027976,2]
[325325670,1714727440879,-362.94669149,0.00027976,10]
[325325671,1714727440892,-1244.22522024,0.00027976,2]
[325325672,1714727440908,-156.20847685,0.00027976,2]
[325325673,1714727440922,-364.83359893,0.00027976,2]
[325325674,1714727440937,-155.0,0.00027976,2]
[325325675,1714727440952,-155.10093137,0.00027976,2]
[325325676,1714727440964,-279.14054832,0.00027976,2]
[325325677,1714727440978,-221.9885273,0.00027976,2]
[325325678,1714727440992,-155.0,0.00027976,2]
[325325679,1714727441006,-525.18951641,0.00027976,2]
[325325680,1714727441026,-379.4956724,0.00027976,2]
[325325681,1714727441040,-194.51511767,0.00027976,2]
[325325682,1714727441058,-155.69804417,0.00027976,2]
[325325683,1714727441071,-155.0,0.00027976,2]
[325325684,1714727441085,-158.45177316,0.00027976,7]
[325325685,1714727441099,-200.44666246,0.00027976,2]
[325325686,1714727441113,-231.24039108,0.00027976,2]
[325325687,1714727441131,-786.99155585,0.00027976,2]
[325325688,1714727441157,-162.73864695,0.00027976,2]
[325325689,1714727441184,-155.85308628,0.00027976,2]
[325325690,1714727441211,-455.09871238,0.00027976,2]
[325325691,1714727441237,-175.64203584,0.00027976,2]
[325325692,1714727441264,-155.32080953,0.00027976,2]
[325325693,1714727441292,-352.53581724,0.00027976,2]
[325325694,1714727441319,-155.0,0.00027976,2]